[Event "16th HSG Open-A 2022"]
[Site "Hilversum"]
[Date "2022.06.18"]
[Round "3.5"]
[White "Jonsson, Gauti Pall"]
[Black "Pham, Khoi"]
[Result "0-1"]
[ECO "D00"]
[WhiteElo "2065"]
[BlackElo "2291"]
[Annotator "NA RC"]
[PlyCount "82"]
[EventDate "2022.06.17"]
[EventCountry "NED"]
[SourceTitle "playchess.com"]
[Source "ChessBase"]
[SourceQuality "1"]
[TimeControl "6600+10"]

1. d4 {[%emt 0:01:11]} Nf6 {[%emt 0:00:05]} 2. Bf4 {[%emt 0:00:32]} d5 {[%emt 0:00:53]} 3. Nc3 {[%emt 0:00:59]} e6 {[%emt 0:00:21]} 4. Nb5 {[%emt 0:01:24]} Na6 {[%emt 0:00:07]} 5. e3 {[%emt 0:01:38]} Be7 {[%emt 0:00:22]} 6. Bd3 {[%emt 0:04:52]} O-O {[%emt 0:00:39]} 7. g4 {[%emt 0:05:21]} c6 {[%emt 0:02:24]} 8. Nc3 {[%emt 0:00:50]} Nb4 {[%emt 0:01:41]} 9. g5 {[%emt 0:05:39]} Nxd3+ {[%emt 0:01:06]} 10. cxd3 {[%emt 0:00:13]} Nd7 {[%emt 0:01:07]} 11. Nf3 {[%emt 0:03:13]} c5 {[%emt 0:09:58]} 12. dxc5 {[%emt 0:03:16]} Nxc5 {[%emt 0:00:05]} 13. b4 {[%emt 0:01:25]} Nd7 {[%emt 0:03:52]} 14. a3 {[%emt 0:04:08]} d4 {[%emt 0:04:30]} 15. Ne4 {[%emt 0:07:45]} ({Avoid the trap} 15. Nxd4 $2 e5 16. Bxe5 Nxe5 $19) 15... dxe3 {[%emt 0:05:34]} 16. fxe3 {[%emt 0:03:02]} a5 {[%emt 0:13:47]} 17. Qc1 {[%emt 0:06:47] [#]} (17. O-O $17 {might work better.}) 17... e5 $19 {[%emt 0:02:01]} ({Don't do} 17... axb4 18. Bc7 Qe8 19. Nd6 Bxd6 20. Bxd6 $16) 18. Bg3 {[%emt 0:05:49]} axb4 {[%emt 0:00:34]} 19. axb4 {[%emt 0:00:15]} Bxb4+ {[%emt 0:00:47]} 20. Kf2 {[%emt 0:01:21]} Rxa1 {[%emt 0:09:10]} 21. Qxa1 {[%emt 0:00:06]} f5 {[%emt 0:00:47]} 22. gxf6 {[%emt 0:06:13]} Nxf6 {[%emt 0:00:12]} 23. Qa2+ {[%emt 0:02:33]} Kh8 {[%emt 0:00:09]} 24. Kg2 {[%emt 0:01:48]} Qxd3 {[%emt 0:03:09]} 25. Neg5 {[%emt 0:01:59]} Nd5 {[%emt 0:01:43]} 26. Bxe5 {[%emt 0:01:36]} Nxe3+ {[%emt 0:04:32]} 27. Kg3 {[%emt 0:00:50]} Qc4 {[%emt 0:03:39]} 28. Qxc4 {[%emt 0:01:43]} Nxc4 {[%emt 0:00:05]} 29. Bd4 {[%emt 0:04:21]} h6 {[%emt 0:06:05]} 30. Ne4 {[%emt 0:00:39]} Bf5 {[%emt 0:00:27]} 31. Nc3 {[%emt 0:02:24]} Bd6+ {[%emt 0:00:49]} 32. Kg2 {[%emt 0:00:36]} b5 {[%emt 0:02:08]} 33. Nh4 {[%emt 0:01:50]} b4 {[%emt 0:07:43]} 34. Nxf5 {[%emt 0:00:51]} Rxf5 {[%emt 0:00:08]} 35. Ne4 {[%emt 0:00:19]} Rd5 {[%emt 0:00:39]} 36. Bf2 {[%emt 0:01:52]} b3 {[%emt 0:02:31]} 37. Nc3 {[%emt 0:00:46]} Rd3 {[%emt 0:00:45]} 38. Nb1 {[%emt 0:00:56]} b2 {[%emt 0:00:26]} 39. Re1 {[%emt 0:00:58]} Na3 {[%emt 0:01:53]} 40. Kf1 {[%emt 0:01:26]} Bb4 {[%emt 0:02:21]} 41. Nxa3 {[%emt 0:06:22]} Rxa3 {[%emt 0:00:25]} 0-1

[Event "16th HSG Open-A 2022"]
[Site "Hilversum"]
[Date "2022.06.18"]
[Round "3.6"]
[White "Van Foreest, Machteld"]
[Black "Boekelman, Jan"]
[Result "1-0"]
[ECO "B28"]
[WhiteElo "2287"]
[BlackElo "2116"]
[Annotator "TA"]
[PlyCount "35"]
[EventDate "2022.06.17"]
[EventCountry "NED"]
[SourceTitle "playchess.com"]
[Source "ChessBase"]
[SourceQuality "1"]
[TimeControl "6600+10"]

{[%evp 17,35,58,34,28,50,32,41,48,57,69,142,30,34,0,175,150,148,164,337,349]} 1. e4 {[%emt 0:00:02]} c5 {[%emt 0:04:21]} 2. Nf3 {[%emt 0:00:05]} a6 {[%emt 0:00:09]} 3. c4 {[%emt 0:00:12]} Nc6 {[%emt 0:00:14]} 4. d4 {[%emt 0:04:37]} cxd4 {[%emt 0:02:43]} 5. Nxd4 {[%emt 0:00:12]} e5 {[%emt 0:00:13]} 6. Nf5 {[%emt 0:02:36]} d5 {[%emt 0:00:26]} 7. cxd5 {[%emt 0:07:47]} Bxf5 {[%emt 0:00:21]} 8. exf5 {[%emt 0:00:46]} Nd4 {[%emt 0:00:07]} 9. Nc3 {[%emt 0:03:30]} Nf6 {[%emt 0:00:19]} 10. Bg5 {[%emt 0:03:18] B28: Sicilian: 2 Nf3 a6 (O'Kelly Variation).} Be7 {[%emt 0:03:02]} 11. Bxf6 {[%emt 0:05:11]} Bxf6 {[%emt 0:00:17]} 12. Bd3 {[%emt 0:01:31] White is slightly better.} Qd7 {[%emt 0:09:11] [#]} 13. O-O $146 {[%emt 0:04:42]} ({Predecessor:} 13. Qb1 Rc8 14. Be4 b5 15. Nd1 Be7 16. Ne3 Bb4+ 17. Kd1 f6 18. Qd3 O-O 19. a3 {1-0 (35) Sojka,V-Svancer,B Czechoslovakia 1968}) 13... Nxf5 {[%emt 0:13:36]} (13... O-O $14) 14. Na4 {[%emt 0:04:18]} (14. Bxf5 $16 Qxf5 15. d6) 14... Rd8 $11 {[%emt 0:04:25]} 15. Nb6 {[%emt 0:04:32]} Qd6 {[%emt 0:07:27] [#]} (15... Qc7 $1 $11) 16. Qa4+ $18 {[%emt 0:03:42]} ({And not} 16. Bxf5 Qxb6 17. Qa4+ Kf8 $11) 16... Kf8 {[%emt 0:08:41]} 17. Nc4 {[%emt 0:02:36] White is more active.} ({Inferior is} 17. Bxf5 Qxb6 18. Rad1 g6 $11) 17... Qc7 {[%emt 0:09:07]} (17... Qe7 {keeps fighting.}) 18. Bxf5 {[%emt 0:00:40] Weighted Error Value: White=0.24 (precise) /Black=0.53} 1-0

[Event "16th HSG Open-A 2022"]
[Site "Hilversum"]
[Date "2022.06.18"]
[Round "3.7"]
[White "In t Veld, Daan"]
[Black "Pijpers, Arthur"]
[Result "1/2-1/2"]
[ECO "B22"]
[WhiteElo "2133"]
[BlackElo "2463"]
[Annotator "TA"]
[PlyCount "46"]
[EventDate "2022.06.17"]
[EventCountry "NED"]
[SourceTitle "playchess.com"]
[Source "ChessBase"]
[SourceQuality "1"]
[TimeControl "6600+10"]

{[%evp 17,46,0,4,-8,-5,-5,-2,-4,-12,-8,13,8,9,8,32,0,0,0,0,0,0,0,0,0,0,0,0,0,0,0,0]} 1. e4 {[%emt 0:00:03]} c5 {[%emt 0:00:06]} 2. c3 {[%emt 0:00:12]} Nf6 {[%emt 0:00:09]} 3. e5 {[%emt 0:00:06]} Nd5 {[%emt 0:00:04]} 4. d4 {[%emt 0:00:05]} cxd4 {[%emt 0:00:07]} 5. Nf3 {[%emt 0:00:06]} Nc6 {[%emt 0:00:19]} 6. Bc4 {[%emt 0:00:07]} Nb6 {[%emt 0:00:05]} 7. Bb3 {[%emt 0:00:05]} d5 {[%emt 0:00:06]} 8. exd6 {[%emt 0:00:19]} Qxd6 {[%emt 0:00:07]} 9. O-O {[%emt 0:00:44][%cal Bh1f1,Bf1d1,Bd1d2][%mdl 32]} Be6 {[%emt 0:00:06]} 10. Na3 {[%emt 0:00:26] [#] Nb5 is the strong threat. B22: Sicilian: 2 c3.} dxc3 {[%emt 0:02:33] 10...Bxb3 is the modern continuation.} 11. Nb5 {[%emt 0:07:23]} Qxd1 {[%emt 0:01:39]} 12. Rxd1 {[%emt 0:00:07][%cal Rb5c7]} Rc8 {[%emt 0:00:44] Inhibits Nc7+. Strongly threatening ...cxb2.} 13. Bxe6 {[%emt 0:03:53] [#]} c2 $146 {[%emt 0:04:18] [#]} ({Predecessor:} 13... fxe6 14. bxc3 g6 15. Ng5 e5 16. Be3 Bh6 17. Nxa7 Nxa7 18. Bxb6 Bxg5 19. Bxa7 Rxc3 20. Rdb1 Kf7 21. Rxb7 Rhc8 22. g3 {½-½ (34) Pap,M (2482)-Brkic,A (2565) Biograd 2018}) 14. Rd2 {[%emt 0:03:06]} fxe6 {[%emt 0:00:24]} 15. Rxc2 {[%emt 0:01:28]} a6 {[%emt 0:23:37]} 16. Nbd4 {[%emt 0:05:22]} Nxd4 {[%emt 0:00:32] The position is equal.} 17. Rxc8+ {[%emt 0:00:08]} Nxc8 {[%emt 0:00:03]} 18. Nxd4 {[%emt 0:00:06]} e5 {[%emt 0:14:09]} 19. Ne6 {[%emt 0:00:47]} Nd6 {[%emt 0:00:56]} 20. Bd2 {[%emt 0:17:33]} Kf7 {[%emt 0:00:53]} 21. Nd8+ {[%emt 0:01:24]} Ke8 {[%emt 0:00:06]} 22. Ne6 {[%emt 0:00:06]} Kf7 {[%emt 0:14:12]} 23. Nd8+ {[%emt 0:00:07]} Ke8 {[%emt 0:00:04] A balanced but interesting game.  Weighted Error Value: White=0.04 (flawless) /Black=0.04 (flawless)} 1/2-1/2

[Event "16th HSG Open-A 2022"]
[Site "Hilversum"]
[Date "2022.06.18"]
[Round "3.8"]
[White "Khabichev, Valeriy"]
[Black "Leenhouts, Koen"]
[Result "1/2-1/2"]
[ECO "B92"]
[WhiteElo "2075"]
[BlackElo "2416"]
[Annotator "TA"]
[PlyCount "207"]
[EventDate "2022.06.17"]
[EventCountry "NED"]
[SourceTitle "playchess.com"]
[Source "ChessBase"]
[SourceQuality "1"]
[TimeControl "6600+10"]

{[%evp 22,207,-8,-13,8,17,10,9,10,6,32,25,28,19,22,0,0,0,0,-34,-27,-24,-34,-32,-36,-28,-23,-27,-29,-39,-8,-30,0,0,0,0,0,0,0,0,0,0,0,0,0,-97,-14,-22,-22,-92,-20,-20,-20,-25,-22,-26,0,-143,0,0,0,0,0,-83,0,0,0,0,0,0,0,0,0,0,0,0,0,0,0,0,0,0,0,0,8,8,30,24,52,0,0,0,0,0,0,0,0,0,0,0,0,0,0,0,0,0,0,0,0,0,0,0,0,-609,-583,-507,-434,-699,-612,-298,-312,-665,-473,-460,-8,-8,-8,-65,-65,-65,-65,-65,-65,-65,-65,-65,-65,-65,-65,-65,0,-8,0,-65,-65,-65,-65,-65,-8,-65,-65,-65,-65,-65,-61,-65,-65,-65,-65,-65,-65,-72,0,-65,-65,-72,0,-65,0,-65,-65,-65,-65,-64,29992,29993,29995,29994,29994,29995,29995,48,48,49,49,48,49,-8]} 1. e4 {[%emt 0:07:09]} c5 {[%emt 0:00:18]} 2. Nf3 {[%emt 0:00:04][%cal Bg1f3,Bf3d4,Bd4b5][%mdl 32]} e6 {[%emt 0:00:09]} 3. d4 {[%emt 0:00:18]} cxd4 {[%emt 0:00:09]} 4. Nxd4 {[%emt 0:00:44]} Nc6 {[%emt 0:00:09]} 5. Nb5 {[%emt 0:00:54]} d6 {[%emt 0:00:16]} 6. Bf4 {[%emt 0:01:42]} e5 {[%emt 0:00:09]} 7. Be3 {[%emt 0:00:32]} Be6 {[%emt 0:00:05]} 8. Be2 {[%emt 0:03:38]} a6 {[%emt 0:02:05]} 9. N5c3 {[%emt 0:03:56]} Nf6 {[%emt 0:00:18]} 10. O-O {[%emt 0:00:46]} Be7 {[%emt 0:01:25]} 11. a4 {[%emt 0:08:32]} O-O {[%emt 0:01:22]} 12. Nd2 {[%emt 0:01:03]} Rc8 {[%emt 0:07:42] B92: Sicilian Najdorf: 6 Be2.} 13. Nc4 $1 {[%emt 0:04:39]} Nd4 {[%emt 0:05:55]} 14. Bxd4 {[%emt 0:01:18] Hoping for Bb6.} Bxc4 {[%emt 0:00:04] The position is equal.} 15. Be3 {[%emt 0:00:30]} Qa5 {[%emt 0:00:50]} 16. Bxc4 {[%emt 0:01:03]} Rxc4 {[%emt 0:00:05]} 17. Qd3 {[%emt 0:00:35]} Rfc8 {[%emt 0:00:44]} 18. f3 {[%emt 0:01:57] [#]} h6 $146 {[%emt 0:04:45]} ({Predecessor:} 18... Qb4 19. Ra3 Qxb2 20. Rb3 Qxb3 21. cxb3 Rxc3 22. Qd2 Rxb3 23. Rc1 Rc6 24. h3 h6 {1-0 (51) Czarnecka,L (1901)-Dwilewicz,K (2092) Bydgoszcz 2020}) 19. Rfd1 {[%emt 0:07:41]} Qb4 {[%emt 0:01:09]} 20. Ra3 {[%emt 0:08:16]} Qxb2 {[%emt 0:00:15]} 21. Rb3 {[%emt 0:00:37]} Qxc3 {[%emt 0:00:29]} 22. Rxc3 {[%emt 0:00:21]} Rxc3 {[%emt 0:00:09]} 23. Qd2 {[%emt 0:08:05]} Rxc2 {[%emt 0:01:52]} 24. Qb4 {[%emt 0:01:45]} R8c7 {[%emt 0:00:22][%cal Od6d5]} 25. Qb1 {[%emt 0:07:00]} Bf8 {[%emt 0:07:09]} 26. a5 {[%emt 0:01:56]} Be7 {[%emt 0:06:52]} 27. Bb6 {[%emt 0:02:12]} R7c6 {[%emt 0:01:28][%cal Od6d5]} 28. Be3 {[%emt 0:00:44]} Rc7 {[%emt 0:02:15]} 29. Bb6 {[%emt 0:00:12]} R7c3 {[%emt 0:04:50][%cal Od6d5]} 30. Bf2 {[%emt 0:04:01]} Bd8 {[%emt 0:02:08]} 31. Qxb7 {[%emt 0:04:10]} Bxa5 {[%emt 0:00:36]} 32. Qxa6 {[%emt 0:05:05]} Bb4 {[%emt 0:01:19]} 33. Qb7 {[%emt 0:02:03]} (33. Qa8+ $11 Kh7 34. Qb7) 33... Rb2 {[%emt 0:02:02]} (33... Rb3 $1 $17 {[%cal Rb3b2] Threatens to win with ...Rbb2.} 34. Ra1 Rbb2) 34. Kh1 $1 $11 {[%emt 0:07:39]} Rcc2 {[%emt 0:02:15]} 35. Ba7 {[%emt 0:05:13]} (35. Be3 $11) 35... Rxg2 {[%emt 0:01:51]} (35... g6 $1 $17 36. Be3 Bd2 37. Qxb2 Rxb2 38. Bxd2 h5) 36. Qc8+ {[%emt 0:00:26]} Kh7 {[%emt 0:00:03]} 37. Qf5+ {[%emt 0:00:23]} Kh8 {[%emt 0:01:43]} 38. Bg1 {[%emt 0:02:23]} (38. Qc8+ Ng8 39. Qh3 Rgc2 $17) 38... Rg5 {[%emt 0:09:47]} 39. Qh3 {[%emt 0:02:14]} (39. Qc8+ $11 {was the only way to keep the balance.} Kh7 40. Rf1) 39... Nh5 {[%emt 0:00:49]} ({Black should play} 39... Kh7 $17 {aiming for ...Nh5.} 40. Qc8 Bd2) 40. Be3 {[%emt 0:00:40]} Nf4 {[%emt 0:00:09]} 41. Bxf4 {[%emt 0:00:16]} exf4 {[%emt 0:00:03]} 42. Rg1 {[%emt 0:01:52]} (42. Qc8+ $11 {remains equal.} Kh7 43. Rg1) 42... Bc5 {[%emt 0:03:52]} 43. Qc8+ {[%emt 0:00:09]} (43. Rxg5 {leads to mate.} Rb1+) 43... Kh7 {[%emt 0:00:05][%csl Gc5][%cal Rg5g1]} 44. Rxg5 {[%emt 0:01:03] The board is on fire.} Rb1+ {[%emt 0:00:08]} 45. Kg2 {[%emt 0:00:01]} Rg1+ {[%emt 0:00:09]} 46. Kh3 {[%emt 0:00:05]} Rxg5 {[%emt 0:00:08][%mdl 4096] Endgame KQ-KRB} 47. Qd7 {[%emt 0:00:29]} Kg6 {[%emt 0:00:21]} 48. Qc8 {[%emt 0:01:08]} Bd4 {[%emt 0:03:30]} 49. Qd7 {[%emt 0:00:08]} Be5 {[%emt 0:00:48]} 50. Qc8 {[%emt 0:00:01]} Rh5+ {[%emt 0:04:07]} 51. Kg2 {[%emt 0:00:10]} Bd4 {[%emt 0:00:35]} 52. Qd7 {[%emt 0:00:06]} Bc5 {[%emt 0:00:16]} 53. h4 {[%emt 0:00:33]} Re5 {[%emt 0:01:18]} 54. Qg4+ {[%emt 0:00:14][%mdl 1024] White has compensation.} Kh7 {[%emt 0:00:03]} 55. Qd7 {[%emt 0:00:06]} (55. Qxf4 $14 Kg8 56. Qg4) 55... f6 {[%emt 0:00:39]} 56. Qg4 {[%emt 0:00:16]} Be3 {[%emt 0:01:46]} 57. Qd7 {[%emt 0:00:06]} Rc5 {[%emt 0:00:14]} 58. Qxd6 {[%emt 0:00:19]} Rc2+ {[%emt 0:00:02]} 59. Kh1 {[%emt 0:00:12]} Rc5 {[%emt 0:02:11]} 60. Qe6 {[%emt 0:00:02]} Re5 {[%emt 0:00:52]} 61. Qd7 {[%emt 0:00:01]} Bf2 {[%emt 0:01:05]} 62. Qg4 {[%emt 0:00:02]} Bg3 {[%emt 0:00:12]} 63. Kg2 {[%emt 0:00:21]} h5 {[%emt 0:00:10]} 64. Qh3 {[%emt 0:00:18]} Rc5 {[%emt 0:00:28]} 65. Kf1 {[%emt 0:00:16]} Kh6 {[%emt 0:00:56]} 66. Ke2 {[%emt 0:00:11]} Rc3 {[%emt 0:01:22]} 67. Kd2 $2 {[%emt 0:00:14][%mdl 8192]} (67. Qf5 $11) 67... Rxf3 $19 {[%emt 0:00:52][%cal Og3e1]} 68. Qc8 {[%emt 0:00:02]} Bxh4 {[%emt 0:01:46] ...Re3 is the strong threat.} 69. Qh8+ {[%emt 0:00:01]} Kg6 {[%emt 0:00:11]} 70. Qe8+ {[%emt 0:00:19]} Kg5 {[%emt 0:00:04]} 71. Qf7 $2 {[%emt 0:00:12]} (71. Qf8 Kg4 72. Qxg7+ Bg5 73. Qd7+ Kh4 74. Kc2) 71... Rf2+ {[%emt 0:00:28]} 72. Kd3 {[%emt 0:00:05][%cal Rf7g7]} g6 $2 {[%emt 0:00:44]} (72... Kh6 $1 $19 73. Qf8 Rf3+ 74. Kd4 Be1) 73. e5 $1 $11 {[%emt 0:00:20]} Rf3+ {[%emt 0:02:00]} (73... fxe5 $5 74. Qe7+ Kf5 75. Qd7+ (75. Qxh4 Rf3+ 76. Kd2 Re3 $11) 75... Kg5 76. Qe7+ Kf5 77. Qxh4 Rb2 $11) 74. Kc4 {[%emt 0:00:01]} (74. Kd2 $1 $11) 74... fxe5 $15 {[%emt 0:00:17]} 75. Qe7+ {[%emt 0:00:04]} Kg4 $1 {[%emt 0:00:13]} 76. Qe6+ {[%emt 0:00:12]} Kg3 {[%emt 0:00:33]} 77. Qxg6+ {[%emt 0:00:11]} Kf2 {[%emt 0:00:27]} 78. Qxh5 {[%emt 0:00:06]} Bg3 {[%emt 0:00:09]} 79. Qxe5 {[%emt 0:00:19]} Re3 $1 {[%emt 0:00:05]} 80. Qd4 {[%emt 0:00:14]} Kf1 {[%emt 0:01:18]} (80... f3 $15) 81. Qd1+ {[%emt 0:00:12]} Kg2 {[%emt 0:00:08]} 82. Kd4 {[%emt 0:00:10]} (82. Qc2+ $11 Kf1 83. Qd1+ Kf2 84. Qd4) 82... Bf2 {[%emt 0:00:13]} 83. Kc4 {[%emt 0:00:08]} f3 {[%emt 0:00:12]} 84. Qd5 {[%emt 0:00:13]} Re1 {[%emt 0:00:46]} ({Black should try} 84... Bg3 $15) 85. Qg5+ {[%emt 0:00:03]} (85. Qg8+ $1 $11 Bg3 86. Qa8) 85... Bg3 {[%emt 0:00:12]} 86. Qd5 {[%emt 0:00:03]} Rc1+ {[%emt 0:00:58]} 87. Kb3 {[%emt 0:00:03]} Rc7 {[%emt 0:00:40]} 88. Ka2 {[%emt 0:00:10]} Re7 {[%emt 0:00:24]} 89. Kb3 {[%emt 0:00:09]} Re3+ {[%emt 0:00:13]} 90. Kc4 {[%emt 0:00:00]} Kf1 {[%emt 0:02:04]} 91. Qg5 {[%emt 0:00:35]} Bf2 {[%emt 0:00:20]} (91... Kf2 $17 92. Qc5 Bf4) 92. Qg6 {[%emt 0:00:15]} (92. Kd4 $11) 92... Be1 $1 {[%emt 0:00:42] White must now prevent ...f2.} 93. Kd4 {[%emt 0:00:11]} Bf2 {[%emt 0:00:39]} (93... Ra3 $5 {[%cal Rf3f2]} 94. Qd6 Ra4+ 95. Ke3 Kg2 96. Qg6+ Bg3 97. Qc2+ f2 98. Qxa4 f1=Q $15) 94. Kc4 {[%emt 0:00:01]} ({Of course not} 94. Qf5 Re1+ 95. Kc4 Kg2 $17) 94... Be1 {[%emt 0:01:27] Strongly threatening ...f2.} (94... Bh4 $5 {[%cal Rf3f2]} 95. Qh6 Re4+ 96. Kd3 Ra4 $17) 95. Kd4 $1 {[%emt 0:00:02]} Ra3 $1 {[%emt 0:00:20]} 96. Qd6 {[%emt 0:00:29]} Ra4+ $1 {[%emt 0:02:44]} 97. Ke3 {[%emt 0:00:11]} f2 $2 {[%emt 0:00:52][%mdl 8192] [#]} (97... Kg2 $15 98. Qg6+ Bg3 99. Qc2+ f2 100. Qxa4 f1=Q) 98. Kf3 $1 {[%emt 0:00:11]} Bb4 {[%emt 0:01:44]} 99. Qd3+ {[%emt 0:00:08]} Kg1 {[%emt 0:00:03]} 100. Qg6+ {[%emt 0:00:02]} Kf1 {[%emt 0:00:03] [#]} 101. Qg2+ $2 {[%emt 0:00:08]} (101. Qb1+ $1 {mates} Be1 102. Qb5+ Rc4 103. Qxc4+ Kg1 104. Qg4+ Kh2 105. Qg2#) 101... Ke1 $14 {[%emt 0:00:02] ( -> ...Bc5). White is slightly better.} 102. Qxf2+ {[%emt 0:00:01]} Kd1 {[%emt 0:00:02]} 103. Qb2 {[%emt 0:00:29] Intending Qb3+ and mate.} Ra3+ {[%emt 0:00:17]} 104. Qxa3 {[%emt 0:00:11] Never resign too early!  Weighted Error Value: White=0.18 (very precise) /Black=0.14 (very precise)} 1/2-1/2

[Event "16th HSG Open-A 2022"]
[Site "Hilversum"]
[Date "2022.06.18"]
[Round "3.9"]
[White "Grutter, Tim"]
[Black "Spit, Vincent"]
[Result "1-0"]
[ECO "B41"]
[WhiteElo "2241"]
[BlackElo "2103"]
[Annotator "TA"]
[PlyCount "113"]
[EventDate "2022.06.17"]
[EventCountry "NED"]
[SourceTitle "playchess.com"]
[Source "ChessBase"]
[SourceQuality "1"]
[TimeControl "6600+10"]

{[%evp 11,113,27,25,25,35,43,57,28,37,-7,-7,-6,7,0,0,0,7,-27,-17,-40,0,0,9,12,14,-11,-29,-50,-67,-43,-19,-20,-14,-49,-62,-31,0,0,0,0,0,0,0,-12,-5,-12,-16,-12,-4,-4,-10,-27,-5,-4,-7,-45,-10,-21,-8,-8,-8,-26,-37,-80,-80,-80,0,0,0,-83,0,0,0,0,0,0,0,0,0,0,0,0,0,0,0,0,0,0,0,0,0,0,0,0,0,0,0,0,0,8,29985,29986,29985,29986]} 1. e4 {[%emt 0:00:02]} c5 {[%emt 0:00:09]} 2. Nf3 {[%emt 0:00:03]} e6 {[%emt 0:00:12]} 3. d4 {[%emt 0:00:04]} cxd4 {[%emt 0:00:08]} 4. Nxd4 {[%emt 0:00:05]} a6 {[%emt 0:00:12]} 5. c4 {[%emt 0:00:06]} Nf6 {[%emt 0:00:27]} 6. Nc3 {[%emt 0:00:07]} Bb4 {[%emt 0:00:32]} 7. Qd3 {[%emt 0:01:01] is the new trend. B41: Sicilian: Kan Variation: 5 c4.} Nc6 {[%emt 0:08:11]} 8. Nxc6 {[%emt 0:05:07]} dxc6 {[%emt 0:00:15]} 9. Qxd8+ {[%emt 0:00:26] White is slightly better. 9.e5 is vanishing.} Kxd8 {[%emt 0:00:08]} 10. Bd2 {[%emt 0:02:17][%cal Bc1d2,Bd2g5,Bg5e3][%mdl 32]} e5 {[%emt 0:02:49]} 11. f3 {[%emt 0:02:38]} Ke7 {[%emt 0:07:02] [#]} 12. g4 $146 {[%emt 0:11:24]} ({Predecessor:} 12. O-O-O Rd8 13. a3 Bc5 14. Be2 Be6 15. Na4 Bd4 16. Bb4+ Ke8 17. Bc5 b5 18. Bxd4 Rxd4 {1-0 (32) Pour Agha Bala,A (2432)-Begaudeau,C Europe Echecs INT 2021}) 12... Bd6 {[%emt 0:04:45]} 13. O-O-O {[%emt 0:11:19]} Be6 {[%emt 0:03:44]} 14. Bg5 {[%emt 0:02:37]} b5 {[%emt 0:06:36]} 15. Be2 {[%emt 0:02:37]} ({Of course not} 15. cxb5 axb5 16. b3 Ra3 17. Rxd6 Kxd6 18. Bxb5 Bxb3 $17) 15... bxc4 {[%emt 0:03:59]} 16. Kb1 {[%emt 0:08:26]} a5 {[%emt 0:05:29]} 17. Rc1 {[%emt 0:01:46]} h6 {[%emt 0:11:18]} 18. Be3 {[%emt 0:01:46][%mdl 1024] White has compensation.} a4 {[%emt 0:01:55] Threatens to win with ...a3.} 19. a3 {[%emt 0:03:05]} Rhb8 {[%emt 0:03:02] ...Bxa3 is the strong threat.} 20. Ka1 {[%emt 0:01:38]} Nd7 {[%emt 0:01:22]} (20... Rb3 $5 {[%cal Ra8b8]} 21. Bd1 Rbb8 $11) 21. Nd1 $1 {[%emt 0:03:09]} Nc5 {[%emt 0:03:41]} 22. Bxc5 {[%emt 0:00:55]} (22. Bxc4 $5 {[%cal Re3c5]} Bxc4 23. Rxc4 $11) 22... Bxc5 {[%emt 0:00:07]} 23. Bxc4 {[%emt 0:00:09]} Bxc4 {[%emt 0:02:08]} (23... Kd6 $5 {[%cal Rc5d4]}) 24. Rxc4 {[%emt 0:00:17]} Bd4 {[%emt 0:00:10]} 25. Nc3 {[%emt 0:05:16]} Kd6 {[%emt 0:03:15]} 26. Rc1 {[%emt 0:03:52]} Rb3 {[%emt 0:01:44]} 27. Rc2 {[%emt 0:01:15]} Bxc3 {[%emt 0:03:13]} (27... c5 {feels hotter.} 28. Ka2 Bxc3 29. R4xc3 Rxc3 30. Rxc3 Kc6) 28. R4xc3 {[%emt 0:01:20]} Rxc3 {[%emt 0:00:09]} 29. Rxc3 $11 {[%emt 0:00:02][%mdl 4096] Endgame KR-KR} c5 {[%emt 0:03:27]} 30. Kb1 {[%emt 0:00:50]} Kc6 {[%emt 0:00:48]} 31. Rd3 {[%emt 0:05:05]} f6 {[%emt 0:01:41]} (31... h5 $5) 32. Kc2 {[%emt 0:06:26]} h5 {[%emt 0:00:49]} 33. h3 {[%emt 0:07:18]} hxg4 {[%emt 0:00:28]} 34. fxg4 {[%emt 0:00:05]} c4 {[%emt 0:01:24]} 35. Rd5 {[%emt 0:07:21]} Rh8 {[%emt 0:00:38]} 36. Ra5 {[%emt 0:00:32]} Rxh3 {[%emt 0:00:12] And now ...Rg3 would win.} 37. Rxa4 {[%emt 0:00:03]} Kc5 {[%emt 0:00:54]} 38. Ra7 {[%emt 0:01:12]} Rh2+ {[%emt 0:01:05]} 39. Kc3 {[%emt 0:00:26]} Rh3+ {[%emt 0:00:08]} 40. Kc2 $1 {[%emt 0:00:01] [#]} Kd4 {[%emt 0:01:46]} (40... g5 $1 $17 41. a4 Kb4) 41. Rxg7 {[%emt 0:00:33]} Rh2+ {[%emt 0:00:13]} 42. Kb1 {[%emt 0:00:17]} Kxe4 {[%emt 0:01:20]} 43. a4 {[%emt 0:00:03]} f5 {[%emt 0:03:41]} 44. gxf5 {[%emt 0:00:19]} Kxf5 {[%emt 0:00:06]} 45. a5 {[%emt 0:01:50]} Rh6 {[%emt 0:01:26]} 46. Rc7 {[%emt 0:00:30]} Ra6 {[%emt 0:01:25]} 47. Rc5 {[%emt 0:00:11]} Ke6 {[%emt 0:03:17]} 48. Kc2 {[%emt 0:00:11] Strongly threatening Kc3.} Kd6 {[%emt 0:00:36]} 49. Rb5 {[%emt 0:00:25]} Rc6 {[%emt 0:01:32]} 50. Kc3 {[%emt 0:00:35]} Rc5 {[%emt 0:02:03]} 51. Kb4 {[%emt 0:01:18]} Rc6 {[%emt 0:00:42]} 52. Rb8 {[%emt 0:00:23]} e4 {[%emt 0:00:57]} 53. Re8 {[%emt 0:00:31]} Kd5 {[%emt 0:00:19]} 54. Rd8+ {[%emt 0:00:06]} Ke5 {[%emt 0:01:02]} 55. Kb5 {[%emt 0:01:34]} c3 $2 {[%emt 0:01:55][%mdl 8192] [#]} 56. Kxc6 {[%emt 0:00:24]} c2 {[%emt 0:00:10]} 57. Rd5+ {[%emt 0:00:01] Weighted Error Value: White=0.07 (flawless) /Black=0.22 (precise)} 1-0